Dept,Entity ,Date,Expense Type,Expense Area,Supplier,Number, Value ,Description
DCMS,NMM,13/10/2023,Assets (WIP) : Design,Capital Spend,Jamie Fobert Architects Limited,49480,168733,September 2023
DCMS,NMM,04/10/2023,Assets (WIP) : Land & Buildings,Capital Spend,Willmott Dixon Interiors Ltd,49260,87060.57,Ocean Court - RIBA Stage 3
DCMS,NMM,02/10/2023,Utilities&R : Electricity - NMM,Utilities,EDF Energy plc,49180,69450.1,Utilities - NMM - Electricity 
DCMS,NMM,20/09/2023,Utilities&R : Electricity - NMM,Utilities,EDF Energy plc,49179,67518.77,Utilities - NMM - Electricity 
DCMS,NMM,20/09/2023,Utilities&R : Electricity - NMM,Utilities,EDF Energy plc,49178,66590.1,Utilities - NMM - Electricity 
DCMS,NMM,20/09/2023,Utilities&R : Electricity - NMM,Utilities,EDF Energy plc,49182,66477.28,Utilities - NMM - Electricity 
DCMS,NMM,16/10/2023,ICT : Service Contracts Software,IT,Espria Limited,49484,3479.87,2 Collector On-prem subscripti
DCMS,NMM,16/10/2023,ICT : Service Contracts Software,IT,Espria Limited,49484,11198.55,DatAdvantage for OneDrive and 
DCMS,NMM,16/10/2023,ICT : Service Contracts Software,IT,Espria Limited,49484,8090.95,Data Classification Framework 
DCMS,NMM,16/10/2023,ICT : Service Contracts Software,IT,Espria Limited,49484,7234.24,DatAlert Suite On-prem subscri
DCMS,NMM,16/10/2023,ICT : Service Contracts Software,IT,Espria Limited,49484,7234.24,DatAdvantage for Windows On-pr
DCMS,NMM,16/10/2023,ICT : Service Contracts Software,IT,Espria Limited,49484,7113.4,DatAdvantage for Directory Ser
DCMS,NMM,16/10/2023,ICT : Service Contracts Software,IT,Espria Limited,49484,6444.26,Edge On-prem subscription for 
DCMS,NMM,16/10/2023,ICT : Service Contracts Software,IT,Espria Limited,49484,5618.21,Automation Engine for Windows 
DCMS,NMM,16/10/2023,ICT : Service Contracts Software,IT,Espria Limited,49484,5208.8,Data Classification Framework 
DCMS,NMM,16/10/2023,ICT : Service Contracts Software,IT,Espria Limited,49484,663.72,Data Classification Policy Pac
DCMS,NMM,25/10/2023,Estab Costs : Building R&M B&CE,Estates,FES FM Ltd,49611,29091.15,October Fee
DCMS,NMM,25/10/2023,Estab Costs : Building R&M B&CE,Estates,FES FM Ltd,49611,29091.15,September Fee
DCMS,NMM,25/10/2023,Estab Costs : Building R&M B&CE,Estates,FES FM Ltd,49611,1683.27,August Fee
DCMS,NMM,25/10/2023,Estab Costs : Building R&M B&CE,Estates,FES FM Ltd,49611,1683.27,July Fee
DCMS,NMM,20/09/2023,Utilities&R : Electricity - NMM,Utilities,EDF Energy plc,49177,57881.33,Utilities - NMM - Electricity 
DCMS,NMM,20/09/2023,Utilities&R : Electricity - NMM,Utilities,EDF Energy plc,49181,53440.19,Utilities - NMM - Electricity 
DCMS,NMM,18/09/2023,Assets (WIP) : Land & Buildings,Capital Spend,Perfect Circle JV Ltd,49411,52781.91,3706-005: ETA MEP Design Servi
DCMS,NMM,17/09/2023,Estab Costs : Building R&M M&E,Estates,Vertex Services Group Ltd,49107,48332.59,Vertex M&E Contract 23/24 - Se
DCMS,NMM,02/10/2023,Assets (WIP) : Specialist Services,Capital Spend,RVT Parametrix Ltd,49157,47740,Additional drawn detail to the
DCMS,NMM,17/10/2023,Assets (WIP) : Land & Buildings,Capital Spend,Creating Adventurous Places Ltd,49486,46459.65,PLAY: Construction Costs
DCMS,NMM,08/02/2023,Professional Fees : Consultancy,People & Culture,Korn Ferry (UK) Limited,49105,34400,Pay and Reward Review 23
DCMS,NMM,01/10/2023,Utilities&R : Rates,Utilities,Greenwich Council (NNDR - Council Tax),50424,27835.6,Rates Oct 23
DCMS,NMM,01/10/2023,Prepayments : Prepayments,Utilities,Greenwich Council (NNDR - Council Tax),50424,5429.4,Rates Oct 23
DCMS,NMM,02/10/2023,ICT : Service Contracts Software,IT,SirsiDynix,49148,25841.45,Renewal of Sirsi Dynix Symphon
DCMS,NMM,02/10/2023,ICT : Service Contracts Software,IT,SirsiDynix,49148,5168.3,VAT - adding on separate line 
DCMS,NMM,22/08/2023,Exp Staff Costs : Staff Recruitment,People & Culture,GatenbySanderson Ltd,49497,31000,First stage fee - all roles
DCMS,NMM,04/10/2023,Assets (WIP) : Land & Buildings,Capital Spend,Willmott Dixon Interiors Ltd,49258,27829.44,Ocean Court - Consultancy brou
